bitfinex/quotes_ETHUSD_20250323
["timestamp","ask_amount","ask_price","bid_price","bid_amount"]
[1742734453801,4.97421,2010.4,2010.2,0.21184487]
[1742734454006,0.7977,2010.3,2010.1,26.309]
[1742734454238,0.7977,2010.3,2010.2,0.21184487]
[1742734454449,0.7977,2010.3,2010.1,26.309]
[1742734454672,0.7977,2010.3,2010.2,0.21296504]
[1742734454961,4.97421,2010.4,2010.1,26.309]
[1742734455260,4.97421,2010.4,2010.2,0.21296504]
[1742734455640,4.97421,2010.4,2010.1,31.28386]
[1742734455845,5.77173,2010.5,2010.2,0.21296504]
[1742734456027,5.77173,2010.5,2010.1,31.28386]
[1742734456219,5.77173,2010.5,2010.2,0.21296504]
[1742734456424,5.77173,2010.5,2010.1,31.28368]
[1742734456625,5.77173,2010.5,2010.2,0.21296504]
[1742734456821,5.77173,2010.5,2010.1,31.28368]
[1742734457025,5.77173,2010.5,2010.2,0.21296504]
[1742734457258,5.77173,2010.5,2010.1,31.28368]
[1742734457459,5.77173,2010.5,2010.2,0.21296504]
[1742734457660,5.77173,2010.5,2010.1,31.28368]
[1742734457827,5.77173,2010.5,2010.2,0.21296504]
[1742734458023,5.77173,2010.5,2010.1,31.28368]
[1742734458239,5.77173,2010.5,2010.2,0.21296504]
[1742734458443,5.77173,2010.5,2010.1,31.28368]
[1742734458649,5.77173,2010.5,2010.2,0.21296504]
[1742734458827,5.77173,2010.5,2010.1,31.28368]
[1742734459028,5.77173,2010.5,2010.2,0.21296504]
[1742734459257,5.77173,2010.5,2010.1,31.28368]
[1742734459437,5.77173,2010.5,2010.2,0.21296504]
[1742734459755,2.14798415,2010.5,2010.1,26.309]
[1742734459928,2.14798415,2010.5,2010.3,0.21269668]
[1742734459929,5.79863,2010.4,2010.3,0.21269668]
[1742734460129,4.97438,2010.3,2010.2,0.21296504]
[1742734460329,4.97438,2010.3,2010.1,26.309]
[1742734460754,8.5035,2010.6,2010.1,26.6253]
[1742734460958,7.97394,2010.5,2010.1,31.60007]
[1742734462161,7.97394,2010.5,2010.1,36.5748]
[1742734462357,3.0,2010.5,2010.1,26.6253]
[1742734462566,7.97391,2010.5,2010.1,31.59999]
[1742734462862,3.0,2010.5,2010.2,9.9491]
[1742734463089,3.0,2010.5,2010.3,4.97437]
[1742734463270,3.0,2010.5,2010.2,4.97455]
[1742734463574,3.0,2010.5,2010.2,9.94907]
[1742734463883,3.0,2010.5,2010.2,4.97452]
[1742734466055,3.0,2010.5,2010.2,9.94897]
[1742734468690,3.0,2010.5,2010.3,0.21291001]
[1742734469385,3.0,2010.5,2010.4,4.97413]
[1742734469681,3.0,2010.7,2010.4,5.18677168]
[1742734470587,4.97298,2010.9,2010.5,4.97384]
[1742734470783,3.0,2010.8,2010.5,4.97384]
[1742734470976,3.0,2010.8,2010.6,0.21210509]
[1742734472690,0.8245,2011.0,2010.6,0.21210509]
[1742734472983,0.8245,2011.0,2010.7,4.97319]
[1742734473198,3.8245,2011.0,2010.6,5.28988]
[1742734473400,8.79724,2011.0,2010.8,0.21156861]
[1742734473703,10.174215,2011.0,2010.9,0.21130041]
[1742734473908,10.174215,2011.0,2010.6,5.28988]
[1742734474218,8.79724,2011.0,2010.7,0.21183684]
[1742734475591,8.79724,2011.0,2010.5,4.97387]
[1742734475759,8.79724,2011.0,2010.8,0.21156861]
[1742734476089,8.79724,2011.0,2010.9,0.21130041]
[1742734476279,13.77011,2011.0,2010.5,4.97387]
[1742734476585,13.77011,2011.0,2010.6,0.21069156]
[1742734477485,4.97291,2010.9,2010.6,0.21069156]
[1742734478594,8.79724,2011.0,2010.6,0.21069156]
[1742734478890,0.8245,2011.0,2010.6,5.50043156]
[1742734479664,0.8245,2011.0,2010.7,4.97337]
[1742734479892,0.8245,2011.0,2010.8,0.21023509]
[1742734480094,8.97091583,2011.1,2010.8,0.21023509]
[1742734480300,5.97091583,2011.1,2010.8,0.21023509]
[1742734482301,7.14711341,2011.1,2010.8,0.21023509]
[1742734484390,7.14711341,2011.1,2010.6,9.95591]
[1742734484586,7.14711341,2011.1,2010.9,0.20996689]
[1742734484779,7.14711341,2011.1,2010.6,5.28991]
[1742734484980,7.14711341,2011.1,2011.0,0.20969871]
[1742734485183,12.11973341,2011.1,2010.6,5.28991]
[1742734485499,10.94353583,2011.1,2010.6,5.28991]
[1742734485677,10.94353583,2011.1,2010.7,0.21050331]
[1742734486073,4.97269,2011.0,2010.7,0.21050331]
[1742734488406,5.97088583,2011.1,2010.7,0.21050331]
[1742734488597,5.7911,2011.2,2010.7,5.18367331]
[1742734488803,7.67220673,2011.2,2010.7,10.15690331]
[1742734489613,4.97242,2011.1,2010.7,5.18367331]
[1742734493507,4.97242,2011.1,2010.7,0.21050331]
[1742734494106,4.97275,2011.0,2010.7,0.21050331]
[1742734495409,10.7575,2011.0,2010.7,0.21050331]
[1742734495696,1.07575,2010.9,2010.5,9.63675]
[1742734495892,10.7575,2011.0,2010.6,0.21061157]
[1742734496752,5.78465,2011.0,2010.6,0.21061157]
[1742734497041,4.97292,2010.9,2010.6,0.21061157]
[1742734497633,5.78465,2011.0,2010.6,0.21061157]
[1742734497999,10.75752,2011.0,2010.6,0.21061157]
[1742734498208,12.11897062,2011.0,2010.5,4.97379]
[1742734498409,4.97291,2010.9,2010.7,0.21034331]
[1742734498645,4.97291,2010.9,2010.6,0.21061157]
[1742734498925,4.97291,2010.9,2010.7,0.21034331]
[1742734499092,4.97291,2010.9,2010.5,4.97379]
[1742734499290,4.97291,2010.9,2010.6,0.21061157]
[1742734499499,6.18481106,2010.9,2010.6,0.21061157]
[1742734501320,4.97327,2010.8,2010.6,0.21061157]
[1742734501535,4.97327,2010.8,2010.4,9.94335]
[1742734501703,4.97327,2010.8,2010.5,0.21114651]
[1742734502105,4.97352,2010.7,2010.5,0.21114651]
[1742734502307,1.076458,2010.6,2010.3,4.649]
[1742734502506,4.97352,2010.7,2010.4,0.21154816]
[1742734503424,9.9471,2010.7,2010.4,0.21154816]
[1742734503827,4.97364,2010.6,2010.4,0.21154816]
[1742734504328,4.97364,2010.6,2010.2,31.27246]
[1742734504542,4.97364,2010.6,2010.3,0.21181649]
[1742734504831,0.8179,2010.5,2010.3,0.21181649]
[1742734505699,5.7918,2010.5,2010.3,0.21181649]
[1742734506526,0.8179,2010.5,2010.3,0.21181649]
[1742734507306,5.79178,2010.5,2010.3,0.21181649]
[1742734510210,6.15040495,2010.6,2010.3,0.21181649]
[1742734510406,6.96830495,2010.6,2010.3,0.21181649]
[1742734518539,1.1941695,2010.5,2010.3,0.21181649]
[1742734518744,5.79154,2010.6,2010.2,4.97461]
[1742734519052,5.79154,2010.6,2010.3,0.21250991]
[1742734519426,5.79154,2010.6,2010.3,5.18683991]
[1742734519427,0.8179,2010.6,2010.3,5.18683991]
[1742734519627,3.0,2010.7,2010.4,4.9741]
[1742734520147,3.0,2010.7,2010.5,0.21197327]
[1742734520333,4.96245511,2010.7,2010.4,4.97413]
[1742734520522,4.96245511,2010.7,2010.5,0.21197327]
[1742734521223,9.93585511,2010.7,2010.5,0.21197327]
[1742734521532,9.93585511,2010.7,2010.3,5.2906]
[1742734521732,9.93585511,2010.7,2010.4,0.21224158]
[1742734522726,1.57316051,2010.6,2010.4,0.21224158]
[1742734523155,0.8225,2010.5,2010.4,0.21224158]
[1742734523454,0.8225,2010.5,2010.2,4.97461]
[1742734523623,0.8225,2010.5,2010.4,0.21224158]
[1742734523823,0.8225,2010.5,2010.3,0.21250991]
[1742734524024,0.8225,2010.5,2010.2,4.97461]
[1742734524025,5.79638,2010.5,2010.4,0.21224158]
[1742734524224,2.55302656,2010.5,2010.4,0.21224158]
[1742734524554,10.52707656,2010.5,2010.4,0.21224158]
[1742734524947,4.97414,2010.4,2010.1,0.01]
[1742734525231,4.97415,2010.4,2010.1,0.01]
[1742734525633,10.52707656,2010.5,2010.1,4.98484]
[1742734525634,15.50104656,2010.5,2010.1,4.98484]
[1742734525836,4.97416,2010.4,2010.1,4.98484]
[1742734527256,4.97416,2010.4,2010.1,0.01]
[1742734527552,4.97416,2010.4,2010.1,4.98487]
[1742734527754,4.97416,2010.4,2010.1,0.01]
[1742734528757,4.97416,2010.4,2010.2,0.21243152]
[1742734528925,4.97416,2010.4,2010.1,0.01]
[1742734529125,4.97416,2010.4,2010.2,0.21243152]
[1742734529357,4.97416,2010.4,2010.1,4.98486]
[1742734529565,4.97416,2010.4,2010.2,0.21243152]
[1742734529858,4.97416,2010.4,2010.1,4.98486]
[1742734530035,4.97416,2010.4,2010.3,0.21216316]
[1742734530247,4.97416,2010.4,2010.2,0.21243152]
[1742734530459,4.97416,2010.4,2010.3,0.21216316]
[1742734531168,10.52691656,2010.5,2010.1,4.98486]
[1742734531466,10.52691656,2010.5,2010.2,0.21243152]
[1742734531671,10.52691656,2010.5,2010.2,0.36278039]
[1742734531869,10.52691656,2010.5,2010.1,4.98486]
[1742734532072,10.52691656,2010.5,2010.3,0.36250456]
[1742734532249,10.52691656,2010.5,2010.2,0.3627804]
[1742734532449,10.52691656,2010.5,2010.4,0.36222874]
[1742734532656,15.50100656,2010.5,2010.3,0.36250456]
[1742734532856,15.50100656,2010.5,2010.4,0.36222874]
[1742734533243,10.52691656,2010.5,2010.1,4.98486]
[1742734533574,13.77046,2010.5,2010.1,4.98486]
[1742734533738,13.77046,2010.5,2010.2,0.3627804]
[1742734533937,8.79639,2010.5,2010.1,4.98486]
[1742734534137,13.7705,2010.5,2010.2,0.3627804]
[1742734534370,13.77047,2010.5,2010.1,4.98486]
[1742734534670,4.97415,2010.4,2010.1,4.98486]
[1742734534871,4.97415,2010.4,2010.2,0.3627804]
[1742734535170,8.79646,2010.5,2010.1,4.98486]
[1742734535374,13.77053,2010.5,2010.2,0.3627804]
[1742734535569,4.97417,2010.4,2010.1,4.98473]
[1742734535894,4.97417,2010.4,2010.2,0.3627804]
[1742734536246,4.97417,2010.4,2010.1,0.01]
[1742734536475,4.97417,2010.4,2010.3,0.36250456]
[1742734536691,4.97417,2010.4,2010.2,0.3627804]
[1742734536872,4.97417,2010.4,2010.3,0.36250456]
[1742734537177,4.97417,2010.4,2010.1,0.01]
[1742734537679,4.97417,2010.4,2010.2,0.3627804]
[1742734537850,6.50877285,2010.3,2010.2,0.3627804]
[1742734538050,6.50877285,2010.3,2010.1,0.01]
[1742734538255,6.50877285,2010.3,2010.2,0.3627804]
[1742734538788,11.48333285,2010.3,2010.2,0.3627804]
[1742734539069,11.48333285,2010.3,2010.1,0.01]
[1742734539261,4.97438,2010.3,2010.2,0.3627804]
[1742734539943,4.97438,2010.3,2010.1,0.01]
[1742734540373,4.97438,2010.3,2010.2,0.3627804]
[1742734540599,4.97438,2010.3,2010.1,0.01]
[1742734540750,4.97438,2010.3,2010.2,0.3627804]
[1742734541083,4.97438,2010.3,2010.1,0.01]
[1742734541258,4.97438,2010.3,2010.2,0.3627804]
[1742734541876,4.97438,2010.3,2010.1,0.01]
[1742734542065,4.97438,2010.3,2010.2,0.36291381]
[1742734542499,4.97438,2010.3,2010.1,0.01]
[1742734542689,4.97438,2010.3,2010.2,0.36291381]
[1742734543387,4.97438,2010.3,2010.1,0.01]
[1742734543575,4.97438,2010.3,2010.2,0.36291381]
[1742734543773,4.97438,2010.3,2010.1,0.01]
[1742734543974,4.97438,2010.3,2010.2,0.36291381]
[1742734544303,4.97438,2010.3,2010.1,0.01]
[1742734544505,4.97438,2010.3,2010.2,0.36291381]
[1742734544670,6.351481,2010.3,2010.2,0.36291381]
[1742734544873,11.326061,2010.3,2010.1,0.01]
[1742734545191,11.326061,2010.3,2010.2,0.36291381]
[1742734545385,11.326061,2010.3,2010.1,0.01]
[1742734545690,11.326061,2010.3,2010.2,0.36291381]
[1742734546205,6.351481,2010.3,2010.2,0.36291381]
[1742734546381,6.351481,2010.3,2010.1,0.01]
[1742734546580,6.351481,2010.3,2010.2,0.36291381]
[1742734546766,6.351481,2010.3,2010.1,0.01]
[1742734546972,6.351481,2010.3,2010.2,0.36291381]
[1742734547274,6.351481,2010.3,2010.1,0.01]
[1742734547475,6.351481,2010.3,2010.2,0.36291381]
[1742734548202,6.351481,2010.3,2010.1,0.01]
[1742734548403,6.351481,2010.3,2010.2,0.36291381]
[1742734548605,6.351481,2010.3,2010.1,0.01]
[1742734548795,6.351481,2010.3,2010.2,0.36291381]
[1742734548967,6.351481,2010.3,2010.1,0.01]
[1742734549172,6.351481,2010.3,2010.2,0.36291381]
[1742734549501,6.351481,2010.3,2010.1,0.01]
[1742734549703,6.351481,2010.3,2010.2,0.36291381]
[1742734550206,6.351481,2010.3,2010.1,0.01]
[1742734550406,6.351481,2010.3,2010.2,0.36291381]
[1742734550570,6.351481,2010.3,2010.1,0.01]
[1742734550773,6.351481,2010.3,2010.2,0.36291381]
[1742734550974,6.351481,2010.3,2010.1,0.01]
[1742734551175,6.351481,2010.3,2010.2,0.36291381]
[1742734551373,11.326051,2010.3,2010.1,0.01]
[1742734551575,4.97462,2010.2,2010.1,0.01]
[1742734555279,7.142781,2010.3,2010.1,0.01]
[1742734555619,4.97438,2010.3,2010.1,0.01]
[1742734556409,9.94894,2010.3,2010.1,0.01]
[1742734557180,4.97438,2010.3,2010.1,0.01]
[1742734557579,5.76592,2010.2,2010.1,0.01]
[1742734558176,4.97438,2010.3,2010.1,0.01]
[1742734558807,4.97438,2010.3,2010.2,0.36312715]
[1742734559113,4.97438,2010.3,2010.1,0.01]
[1742734559432,4.97462,2010.2,2010.1,0.01]
[1742734559590,4.97444,2010.3,2010.1,0.01]
[1742734560322,5.79882,2010.2,2010.1,0.01]
[1742734565521,9.11801047,2010.2,2010.1,0.01]
[1742734566229,9.11801047,2010.2,2010.1,0.37455]
[1742734566434,9.11801047,2010.2,2010.1,0.01]
[1742734567534,7.97462,2010.2,2010.1,0.01]
[1742734567730,10.00333647,2010.2,2010.1,0.01]
[1742734568232,10.00333647,2010.2,2010.1,0.37516366]
[1742734568733,11.14999864,2010.2,2010.1,0.37516366]
[1742734569127,11.14999864,2010.2,2010.1,0.01]
[1742734569514,11.14999864,2010.2,2010.1,0.37540383]
[1742734569703,11.14999864,2010.2,2010.1,0.01]
[1742734571544,11.69999864,2010.2,2010.1,0.01]
[1742734572715,11.69899864,2010.2,2010.1,0.01]
[1742734576042,11.14899864,2010.2,2010.1,0.01]
[1742734576541,15.78699864,2010.2,2010.1,0.01]
[1742734577343,15.01899864,2010.2,2010.1,0.37692489]
[1742734577522,15.01899864,2010.2,2010.1,0.01]
[1742734577722,15.01899864,2010.2,2010.1,0.37692489]
[1742734577911,15.01899864,2010.2,2010.1,0.01]
[1742734578113,15.01899864,2010.2,2010.1,0.37692489]
[1742734578347,15.01899864,2010.2,2010.1,0.01]
[1742734578542,15.01899864,2010.2,2010.1,0.37692489]
[1742734578745,15.01899864,2010.2,2010.1,0.01]
[1742734578909,15.01899864,2010.2,2010.1,0.37692489]
[1742734579113,15.01899864,2010.2,2010.1,0.01]
[1742734579314,15.01899864,2010.2,2010.1,0.37692489]
[1742734579515,15.01899864,2010.2,2010.1,0.01]
[1742734579727,15.01899864,2010.2,2010.1,0.37692489]
[1742734579928,15.01899864,2010.2,2010.1,0.01]
[1742734580115,15.01899864,2010.2,2010.1,0.37692489]
[1742734580328,15.01899864,2010.2,2010.1,0.01]
[1742734580541,15.01899864,2010.2,2010.1,0.37692489]
[1742734580742,15.01899864,2010.2,2010.1,0.01]
[1742734580942,15.01899864,2010.2,2010.1,0.37692489]
[1742734581143,15.01899864,2010.2,2010.1,0.01]
[1742734581346,15.01899864,2010.2,2010.1,0.37692489]
[1742734581520,15.01899864,2010.2,2010.1,0.01]
[1742734581722,15.01899864,2010.2,2010.1,0.37692489]
[1742734581948,15.01899864,2010.2,2010.1,0.01]
[1742734582153,15.01899864,2010.2,2010.1,0.37692489]
[1742734582349,15.01899864,2010.2,2010.1,0.01]
[1742734582521,15.01899864,2010.2,2010.1,0.37692489]
[1742734582720,15.01899864,2010.2,2010.1,0.01]
[1742734582920,15.01899864,2010.2,2010.1,0.37692489]
[1742734591858,8.35228217,2010.2,2010.1,0.37692489]
[1742734592067,4.97362,2010.2,2010.1,0.37692489]
[1742734592366,5.78653,2010.4,2010.1,0.69322489]
[1742734592367,4.97415,2010.4,2010.1,0.69322489]
[1742734592566,3.0,2010.3,2010.1,0.69322489]
[1742734592734,7.97413,2010.4,2010.1,0.69322489]
[1742734593136,9.94846,2010.4,2010.1,0.69322489]
[1742734593939,4.97439,2010.3,2010.1,0.69322489]
[1742734594468,4.97439,2010.3,2010.1,0.37692489]
[1742734594765,4.97439,2010.3,2010.2,0.3163]
[1742734595148,7.97424,2010.4,2010.2,0.68201497]
[1742734595356,7.97424,2010.4,2010.2,0.3163]
[1742734595562,7.97424,2010.4,2010.3,0.36543913]
[1742734605360,4.97455,2010.3,2010.1,0.01]
[1742734606384,9.94914,2010.3,2010.1,0.01]
[1742734606587,4.97462,2010.2,2010.1,0.01]
[1742734607174,10.027437,2010.2,2010.1,0.01]
[1742734618585,10.027437,2010.2,2010.1,0.37564409]
[1742734623010,10.40955237,2010.2,2010.1,0.37564409]
[1742734624871,10.40955237,2010.2,2010.1,0.01]
[1742734627523,10.40955237,2010.2,2010.1,0.37548392]
[1742734627816,10.40955237,2010.2,2010.1,0.01]
[1742734630692,3.0,2010.2,2010.1,0.01]
[1742734630891,7.97462,2010.2,2010.1,0.01]
[1742734631096,7.97462,2010.2,2010.1,0.37668472]
[1742734632206,3.0,2010.2,2010.1,0.69298472]
[1742734634010,7.97462,2010.2,2010.1,0.69298472]
[1742734634217,7.97462,2010.2,2010.1,0.37668472]
[1742734635214,9.269525,2010.2,2010.1,0.37668472]
[1742734636310,7.97462,2010.2,2010.1,0.37668472]
[1742734646327,8.72742,2010.2,2010.1,0.37668472]
[1742734646991,13.72848765,2010.2,2010.1,0.37668472]
[1742734649129,13.72848765,2010.2,2010.1,0.01]
[1742734653154,18.97248765,2010.2,2010.1,0.01]
[1742734653452,16.62059342,2010.2,2010.1,0.01]
[1742734654850,16.62059342,2010.2,2010.1,0.37596416]
[1742734656146,11.98759342,2010.2,2010.1,0.37596416]
[1742734656519,11.98759342,2010.2,2010.1,0.01]
[1742734657821,11.98759342,2010.2,2010.1,0.37596416]
[1742734658522,11.23479342,2010.2,2010.1,0.37596416]
[1742734663467,12.04089342,2010.2,2010.1,0.37596416]
[1742734664963,12.04089342,2010.2,2010.1,0.01]
[1742734665391,12.04089342,2010.2,2010.1,0.37569733]
[1742734665551,12.04089342,2010.2,2010.1,0.01]
[1742734665750,12.04089342,2010.2,2010.1,0.37569733]
[1742734665950,12.04089342,2010.2,2010.1,0.01]
[1742734666182,12.04089342,2010.2,2010.1,0.37569733]
[1742734666395,12.04089342,2010.2,2010.1,0.01]
[1742734666597,12.04089342,2010.2,2010.1,0.37569733]
[1742734667653,11.23479342,2010.2,2010.1,0.01]
[1742734667997,11.23479342,2010.2,2010.1,0.37569733]
[1742734668152,11.23479342,2010.2,2010.1,0.01]
[1742734668352,11.23479342,2010.2,2010.1,0.37569733]
[1742734668551,11.23479342,2010.2,2010.1,0.01]
[1742734668753,11.23479342,2010.2,2010.1,0.37569733]
[1742734668968,11.23479342,2010.2,2010.1,0.01]
[1742734669171,11.23479342,2010.2,2010.1,0.37569733]
[1742734669400,11.23479342,2010.2,2010.1,0.01]
[1742734669614,11.23479342,2010.2,2010.1,0.37569733]
[1742734669777,11.23479342,2010.2,2010.1,0.01]
[1742734669975,11.23479342,2010.2,2010.1,0.37569733]
[1742734670180,11.23479342,2010.2,2010.1,0.01]
[1742734670387,15.86779342,2010.2,2010.1,0.37569733]
[1742734670593,15.86779342,2010.2,2010.1,0.01]
[1742734670799,12.97568765,2010.2,2010.1,0.01]
[1742734671081,12.97568765,2010.2,2010.1,0.37569733]
[1742734675285,1.00174896,2010.5,2010.1,5.35044733]
[1742734675509,7.85691649,2010.8,2010.1,5.35044733]
[1742734675510,4.97347,2010.7,2010.3,0.3163]
[1742734675697,4.97347,2010.7,2010.4,0.36494981]
[1742734675892,3.0,2010.6,2010.5,0.3163]
[1742734676093,3.0,2010.6,2010.5,0.68097403]
[1742734676494,9.62487,2011.0,2010.5,0.68097403]
[1742734676495,4.97313,2010.9,2010.6,0.3163]
[1742734676680,9.94621,2010.9,2010.8,0.3163]
[1742734676888,12.94621,2010.9,2010.8,0.68014684]
[1742734677287,7.97308,2010.9,2010.8,0.68014684]
[1742734677914,7.97308,2010.9,2010.8,0.3163]
[1742734684220,3.0,2010.9,2010.8,0.3163]
[1742734684528,7.97289,2010.9,2010.8,0.3163]
[1742734684831,7.97289,2010.9,2010.8,0.67662576]
[1742734700649,7.97235,2011.2,2010.8,0.67662576]
[1742734700945,3.0,2011.0,2010.8,0.67662576]
[1742734701946,7.97266,2011.0,2010.8,0.67662576]
[1742734702844,3.0,2011.0,2010.8,0.67662576]
[1742734705735,3.0,2011.1,2010.8,0.67662576]
[1742734705937,7.97241,2011.1,2010.8,0.67662576]
[1742734707363,4.97274,2011.0,2010.8,0.67662576]
[1742734707529,4.97289,2010.9,2010.8,0.36032576]
[1742734707729,4.97289,2010.9,2010.6,0.3163]
[1742734708056,4.97289,2010.9,2010.7,0.36030814]
[1742734709669,9.94601,2010.9,2010.7,0.36030814]
[1742734710243,4.97289,2010.9,2010.7,0.36030814]
[1742734713676,4.97314,2010.8,2010.7,0.36030814]
[1742734726738,4.9727,2011.0,2010.8,0.3163]
[1742734727040,7.9727,2011.0,2010.9,0.35962343]
[1742734727222,4.97215,2011.2,2010.9,0.35962343]
[1742734727395,4.9724,2011.1,2010.8,0.3163]
[1742734727592,4.9724,2011.1,2011.0,0.35934778]
[1742734727834,4.9724,2011.1,2010.9,0.35962343]
[1742734728034,4.9724,2011.1,2011.0,0.35934778]
[1742734729331,4.9724,2011.1,2010.8,0.3163]
[1742734729332,9.945,2011.1,2010.8,0.3163]
[1742734729637,9.945,2011.1,2010.9,0.35962343]
[1742734730046,9.945,2011.1,2010.8,0.3163]
[1742734730335,9.945,2011.1,2011.0,0.35934778]
[1742734730491,9.945,2011.1,2010.9,0.35962343]
[1742734730692,9.945,2011.1,2011.0,0.35934778]
[1742734730920,9.945,2011.1,2010.8,0.3163]
[1742734731237,9.945,2011.1,2010.9,0.35962343]
[1742734731533,4.97265,2011.0,2010.8,0.3163]
[1742734731728,4.97265,2011.0,2010.9,0.35962343]
[1742734731934,4.97265,2011.0,2010.8,0.3163]
[1742734732341,4.97265,2011.0,2010.9,0.35962343]
[1742734732547,4.97265,2011.0,2010.8,0.3163]
[1742734732695,4.97265,2011.0,2010.9,0.35962343]
[1742734733127,4.97265,2011.0,2010.8,0.3163]
[1742734733313,4.97265,2011.0,2010.9,0.35962343]
[1742734733514,4.97265,2011.0,2010.8,0.3163]
[1742734733837,4.97265,2011.0,2010.9,0.35962343]
[1742734734240,4.97265,2011.0,2010.8,0.3163]
[1742734734439,4.97265,2011.0,2010.9,0.35962343]
[1742734734797,4.97265,2011.0,2010.8,0.3163]
[1742734735001,4.97265,2011.0,2010.9,0.35962343]
[1742734736311,4.97265,2011.0,2010.8,0.3163]
[1742734736511,4.97265,2011.0,2010.9,0.35962343]
[1742734737300,4.97265,2011.0,2010.8,0.3163]
[1742734737517,4.97265,2011.0,2010.9,0.35962343]
[1742734737726,4.97265,2011.0,2010.8,0.3163]
[1742734738116,4.97265,2011.0,2010.9,0.35962343]
[1742734738317,4.97265,2011.0,2010.8,0.3163]
[1742734738514,4.97265,2011.0,2010.9,0.35962343]
[1742734738711,9.9455,2011.0,2010.8,0.3163]
[1742734739118,9.9455,2011.0,2010.9,0.35962343]
[1742734739528,9.9455,2011.0,2010.8,0.3163]
[1742734739751,9.9455,2011.0,2010.9,0.35906352]
[1742734740070,9.9455,2011.0,2010.8,0.3163]
[1742734740252,4.97265,2011.0,2010.9,0.35906352]
[1742734740660,9.94553,2011.0,2010.8,0.3163]
[1742734741032,9.94553,2011.0,2010.9,0.35906352]
[1742734741569,9.94553,2011.0,2010.8,0.3163]
[1742734741755,9.94553,2011.0,2010.9,0.35906352]
[1742734741955,9.94553,2011.0,2010.8,0.3163]
[1742734742134,4.97289,2010.9,2010.8,0.3163]
[1742734742972,4.97289,2010.9,2010.6,0.3163]
[1742734746466,4.97265,2011.0,2010.6,0.3163]
[1742734747598,4.97291,2010.9,2010.6,0.3163]
[1742734753800,4.97291,2010.9,2010.7,0.35985481]
[1742734755458,4.97265,2011.0,2010.7,0.35985481]
[1742734755888,4.97289,2010.9,2010.7,0.35985481]
[1742734756410,0.7784,2011.8,2011.0,0.3163]
[1742734756710,4.9715,2011.5,2011.1,0.3163]
[1742734756997,4.9715,2011.5,2011.1,0.6748122]
[1742734757505,3.0,2011.7,2011.1,0.6748122]
[1742734757506,4.97094,2011.7,2011.2,5.28843]
[1742734757672,4.97094,2011.7,2011.2,9.96814472]
[1742734757871,4.97094,2011.7,2011.3,0.35796104]
[1742734758190,4.97094,2011.7,2011.4,0.3163]
[1742734758394,4.97094,2011.7,2011.5,0.35679684]
[1742734758713,4.97069,2011.8,2011.5,0.35679684]
[1742734758876,0.7956,2012.2,2011.6,4.97104]
[1742734759063,4.97003,2012.1,2011.7,0.3163]
[1742734759263,9.94015,2012.1,2011.7,0.6725459]
[1742734759499,4.97003,2012.1,2011.7,0.3163]
[1742734759804,3.0,2012.1,2011.8,0.35597047]
[1742734760972,4.96971,2012.2,2011.8,0.35597047]
[1742734761169,7.96947,2012.3,2011.8,0.35597047]
[1742734761369,12.93912,2012.3,2011.8,5.32661047]
[1742734761565,4.96968,2012.2,2011.8,0.35597047]
[1742734761879,7.96956,2012.3,2012.0,0.3163]
[1742734762075,4.96956,2012.3,2012.0,0.3163]
[1742734762279,4.96956,2012.3,2012.1,0.35256]
[1742734767571,4.96925,2012.4,2012.1,0.35256]
[1742734768219,3.0,2012.4,2012.1,0.35256]
[1742734768577,4.96871,2012.6,2012.2,0.3163]
[1742734768774,7.96845,2012.7,2012.3,0.34798646]
[1742734769211,4.96871,2012.6,2012.3,0.34798646]
[1742734769409,4.9685,2012.7,2012.3,0.34798646]
[1742734769709,4.9682,2012.8,2012.3,5.31739646]
[1742734770331,9.93661,2012.8,2012.3,5.31739646]
[1742734770932,4.9682,2012.8,2012.3,5.31739646]
[1742734771140,9.93654,2012.8,2012.3,5.31739646]
[1742734771292,4.9682,2012.8,2012.3,5.31739646]
[1742734771736,9.93659,2012.8,2012.3,5.31739646]
[1742734771901,4.9682,2012.8,2012.3,5.31739646]
[1742734772111,3.0,2012.8,2012.3,5.31731646]
[1742734773543,3.0,2012.8,2012.4,4.96917]
[1742734773693,4.96907,2012.5,2012.3,0.34798646]
[1742734773894,5.77787,2012.5,2012.0,36.19941]
[1742734774104,4.96931,2012.4,2012.0,36.19941]
[1742734774927,4.96931,2012.4,2012.1,0.31958358]
[1742734775129,5.77787,2012.5,2012.1,0.31958358]
[1742734776334,10.747,2012.5,2012.1,0.31958358]
[1742734776532,5.77787,2012.5,2012.1,0.31958358]
[1742734776716,4.9692,2012.4,2012.1,0.31958358]
[1742734781037,5.7778,2012.5,2012.1,0.31958358]
[1742734781239,4.96922,2012.4,2012.1,0.31958358]
[1742734789967,4.96945,2012.3,2012.1,0.31958358]
[1742734800253,4.96968,2012.2,2012.1,0.31958358]
[1742734800856,5.74038,2012.2,2012.1,0.31958358]
[1742734801082,6.811363,2012.2,2012.1,0.31958358]
[1742734801450,9.811363,2012.2,2012.1,0.31958358]
[1742734807478,7.96968,2012.2,2012.1,0.31958358]
[1742734807789,3.0,2012.2,2012.1,0.31958358]
[1742734807987,7.96968,2012.2,2012.1,0.31958358]
[1742734811402,4.96897,2012.5,2012.2,0.3163]
[1742734811697,4.96877,2012.6,2012.2,5.28593]
[1742734811881,0.7612,2012.8,2012.3,4.96922]
[1742734812087,4.96824,2012.8,2012.4,5.2854]
[1742734812293,4.96824,2012.8,2012.4,4.96907]
[1742734812596,4.96824,2012.8,2012.5,0.3163]
[1742734815212,9.93663,2012.8,2012.5,0.3163]
[1742734815508,4.96849,2012.7,2012.4,4.627]
[1742734815702,4.96888,2012.6,2012.4,4.627]
[1742734816294,4.96888,2012.6,2012.3,0.3163]
[1742734816518,0.7612,2012.6,2012.1,31.88679358]
[1742734816717,4.96912,2012.5,2012.1,31.88679358]
[1742734817013,9.93826,2012.5,2012.1,31.88679358]